bitfinex/quotes_SOLUSD_20251120
["timestamp","ask_amount","ask_price","bid_price","bid_amount"]
[1763665394699,50.0,132.06,132.02,0.67]
[1763665394700,4.89431016,132.03,132.02,0.67]
[1763665395022,4.89431016,132.05,132.03,0.67]
[1763665395169,4.89431016,132.04,132.03,0.67]
[1763665395364,4.89431016,132.05,132.03,13.12246461]
[1763665395565,54.89431016,132.04,132.01,0.67]
[1763665395793,4.89431016,132.03,132.01,13.12246461]
[1763665395995,4.89431016,132.02,132.01,0.67]
[1763665396301,4.89431016,132.02,131.99,0.67]
[1763665396512,4.89431016,132.01,131.98,12.45246461]
[1763665396696,4.89431016,132.01,131.99,12.45246461]
[1763665397086,4.89431016,132.01,132.0,0.67]
[1763665397315,10.14656296,132.01,132.0,0.67]
[1763665397617,5.2522528,132.01,132.0,13.12246461]
[1763665397982,4.90312604,132.03,132.0,13.12246461]
[1763665398187,50.0,132.04,132.01,13.12246461]
[1763665398617,64.31246461,132.06,132.02,0.67]
[1763665398905,5.99287803,132.08,132.03,12.45246461]
[1763665398906,5.22831227,132.05,132.03,12.45246461]
[1763665399093,4.9073919,132.07,132.04,12.45246461]
[1763665399298,50.0,132.05,131.99,0.67]
[1763665399497,10.13747651,132.04,132.0,12.45246461]
[1763665399797,50.0,132.01,131.97,12.45246461]
[1763665400109,50.0,131.99,131.95,12.45246461]
[1763665400320,50.0,131.97,131.95,12.45246461]
[1763665400684,50.0,131.97,131.95,13.17246461]
[1763665400880,5.99287803,132.03,131.96,13.17246461]
[1763665401125,8.23329524,132.06,131.96,13.17246461]
[1763665401126,50.0,132.05,132.02,12.45246461]
[1763665401421,50.0,132.07,132.04,12.45246461]
[1763665401582,5.23008396,132.06,132.05,12.45246461]
[1763665401781,50.0,132.07,131.98,0.02]
[1763665401984,50.68,132.07,132.03,12.45246461]
[1763665402193,5.22996729,132.06,132.05,12.45246461]
[1763665402516,50.0,132.12,132.05,12.45246461]
[1763665402813,50.0,132.12,132.02,1.88]
[1763665402814,50.68,132.15,132.11,7.96412705]
[1763665402981,50.68,132.15,132.12,7.96412705]
[1763665403385,0.68,132.15,132.12,7.96412705]
[1763665403588,0.68,132.15,132.08,7.96412705]
[1763665403806,0.68,132.15,132.07,1.9]
[1763665403807,0.68,132.15,132.07,1.88]
[1763665404038,0.68,132.15,132.04,0.02]
[1763665404040,57.96412705,132.13,132.04,0.02]
[1763665404221,50.0,132.11,132.07,7.96412705]
[1763665404585,50.68,132.11,132.07,7.96412705]
[1763665404813,52.56,132.13,132.09,7.96412705]
[1763665404994,0.68,132.12,132.09,7.96412705]
[1763665405199,0.68,132.12,132.03,1.88]
[1763665405405,0.68,132.12,132.08,7.96412705]
[1763665406000,0.68,132.16,132.08,7.98412705]
[1763665406220,5.9109607,132.16,132.13,7.96412705]
[1763665406427,0.68,132.16,132.08,0.02]
[1763665406591,3.95793154,132.21,132.08,0.02]
[1763665406592,0.68,132.2,132.15,7.96412705]
[1763665406794,50.0,132.21,132.15,0.02]
[1763665407121,0.68,132.22,132.19,7.96412705]
[1763665407292,0.68,132.22,132.14,0.02]
[1763665407494,0.68,132.22,132.18,7.96412705]
[1763665407898,8.64412705,132.22,132.17,7.96412705]
[1763665408095,50.0,132.2,132.08,9.96412704]
[1763665408391,7.96412705,132.17,132.09,1.88]
[1763665408610,7.96412705,132.15,132.09,1.88]
[1763665408807,57.96412705,132.16,132.09,1.88]
[1763665408988,8.64412705,132.15,132.1,7.96412705]
[1763665409192,50.0,132.13,132.08,7.96412705]
[1763665409488,50.68,132.13,132.08,7.96412705]
[1763665410227,57.96412705,132.13,132.05,0.02]
[1763665410406,7.96412705,132.1,132.01,0.02]
[1763665410595,58.68412705,132.09,132.04,7.96412705]
[1763665410922,7.96412705,132.08,132.03,7.96412705]
[1763665411507,50.0,132.09,132.03,7.96412705]
[1763665411508,57.96412705,132.09,132.03,7.96412705]
[1763665411703,58.68412705,132.09,132.03,7.96412705]
[1763665411935,50.72,132.09,132.01,0.02]
[1763665412242,50.72,132.09,132.04,7.96412705]
[1763665412924,50.0,132.11,132.06,7.96412705]
[1763665413245,7.96412705,132.1,132.04,7.96412705]
[1763665413535,7.96412705,132.1,132.01,0.02]
[1763665413536,7.96412705,132.09,132.03,7.96412705]
[1763665413743,7.96412705,132.09,132.04,7.96412705]
[1763665413917,7.96412705,132.09,132.04,163.8]
[1763665414117,0.72,132.08,132.04,163.8]
[1763665414441,57.96412705,132.06,132.0,7.96412705]
[1763665414604,7.96412705,132.05,132.0,7.96412705]
[1763665414805,57.96412705,132.08,132.03,7.96412705]
[1763665415035,57.96412705,132.08,132.03,69.16412705]
[1763665415230,7.96412705,132.07,132.03,61.2]
[1763665415437,0.72,132.07,132.03,61.2]
[1763665415640,0.72,132.07,132.02,7.96412705]
[1763665415806,2.71999999,132.07,132.02,7.96412705]
[1763665416002,0.72,132.1,132.06,7.96412705]
[1763665416309,10.68412704,132.1,132.0,7.96412705]
[1763665416509,1.99999999,132.09,132.06,7.96412705]
[1763665416705,1.99999999,132.12,132.08,7.96412705]
[1763665416940,2.71999999,132.17,132.11,7.96412705]
[1763665417140,1.99999999,132.16,132.05,1.86]
[1763665417344,9.96412704,132.15,132.05,1.86]
[1763665417537,9.96412704,132.15,131.99,22.75399142]
[1763665417538,9.96412704,132.1,131.99,22.75399142]
[1763665417722,9.96412704,132.09,131.99,24.61399142]
[1763665417920,9.96412704,132.09,131.99,1.86]
[1763665418155,1.99999999,132.13,132.0,0.75757575]
[1763665418445,1.99999999,132.14,132.0,8.33322959]
[1763665418631,1.99999999,132.13,132.0,8.33313691]
[1763665418836,9.96412704,132.14,132.09,7.96412705]
[1763665419037,1.99999999,132.13,132.0,0.75757575]
[1763665419259,1.99999999,132.13,132.0,8.7217028]
[1763665419260,10.68412704,132.13,132.0,8.7217028]
[1763665419422,7.96412705,132.12,132.07,7.96412705]
[1763665419757,1.99999999,132.11,132.0,7.96412705]
[1763665419958,9.96412704,132.11,132.06,7.96412705]
[1763665420258,1.99999999,132.08,132.01,7.96412705]
[1763665420424,7.96412705,132.08,132.03,7.96412705]
[1763665420620,2.71999999,132.1,132.03,7.96412705]
[1763665420929,1.99999999,132.12,132.05,7.96412705]
[1763665421129,1.99999999,132.12,131.99,1.86]
[1763665421130,7.96412705,132.1,131.99,1.86]
[1763665421331,7.96412705,132.1,132.04,7.96412705]
[1763665421552,1.99999999,132.09,132.05,7.96412705]
[1763665421716,7.96412705,132.11,132.05,7.96412705]
[1763665421917,7.96412705,132.09,132.0,7.96412705]
[1763665422149,9.96412704,132.1,132.05,7.96412705]
[1763665422831,9.96412704,132.1,132.0,7.96412705]
[1763665422832,1.99999999,132.1,132.0,7.96412705]
[1763665423155,9.96412704,132.1,132.05,7.96412705]
[1763665423320,1.99999999,132.13,132.07,7.96412705]
[1763665423527,7.96412705,132.13,132.08,7.96412705]
[1763665423748,7.96412705,132.14,132.09,7.96412705]
[1763665423923,7.96412705,132.14,132.09,69.16412705]
[1763665424251,1.99999999,132.13,132.09,69.16412705]
[1763665424629,9.96412704,132.13,132.09,61.2]
[1763665424828,1.99999999,132.13,132.09,61.2]
[1763665425068,9.96412704,132.13,132.09,61.2]
[1763665425231,1.99999999,132.13,132.09,61.2]
[1763665425553,7.96412705,132.11,132.06,1.86]
[1763665425745,7.96412705,132.1,132.06,1.86]
[1763665425941,8.68412705,132.1,132.06,1.86]
[1763665426144,1.99999999,132.11,132.06,1.86]
[1763665426347,2.71999999,132.11,132.06,7.96412705]
[1763665426551,2.71999999,132.1,132.01,1.86]
[1763665426848,7.96412705,132.09,132.04,7.96412705]
[1763665427235,2.71999999,132.1,132.04,7.96412705]
[1763665427559,1.99999999,132.1,132.06,7.96412705]
[1763665428166,7.96412705,132.1,132.05,7.96412705]
[1763665428363,9.96412704,132.1,132.05,7.96412705]
[1763665428536,7.96412705,132.11,132.06,7.96412705]
[1763665428933,7.96412705,132.11,132.01,1.86]
[1763665429141,7.96412705,132.11,132.06,7.96412705]
[1763665429142,8.68412705,132.11,132.06,7.96412705]
[1763665429343,1.99999999,132.12,132.06,7.96412705]
[1763665429550,1.99999999,132.12,132.01,1.86]
[1763665429551,1.99999999,132.16,132.1,7.96412705]
[1763665429751,9.96412704,132.16,132.11,7.96412705]
[1763665430108,1.99999999,132.16,132.12,7.96412705]
[1763665430732,10.68412704,132.17,132.12,7.96412705]
[1763665430937,1.99999999,132.17,132.13,7.96412705]
[1763665431126,7.96412705,132.18,132.13,7.96412705]
[1763665431328,0.71,132.19,132.13,7.96412705]
[1763665431529,9.96412704,132.17,132.12,7.96412705]
[1763665431733,9.96412704,132.16,132.11,7.96412705]
[1763665431930,1.99999999,132.16,132.11,7.96412705]
[1763665432129,7.96412705,132.16,132.11,7.96412705]
[1763665432350,2.70999999,132.16,132.12,7.96412705]
[1763665432549,2.70999999,132.16,132.08,9.82412705]
[1763665432550,10.67412704,132.16,132.11,7.96412705]
[1763665432833,7.96412705,132.14,132.09,7.96412705]
[1763665433149,2.70999999,132.15,132.0,7.96412705]
[1763665433150,7.96412705,132.11,132.0,7.96412705]
[1763665433341,7.96412705,132.11,132.05,7.96412705]
[1763665433342,1.99999999,132.11,132.05,7.96412705]
[1763665433663,9.96412704,132.11,132.06,7.96412705]
[1763665434088,10.67412704,132.11,132.06,7.96412705]
[1763665434262,8.67412705,132.1,132.01,1.86]
[1763665434665,7.96412705,132.09,132.01,0.28878175]
[1763665434863,9.96412704,132.09,132.03,7.96412705]
[1763665435190,9.96412704,132.09,132.04,7.96412705]
[1763665435347,10.67412704,132.09,132.04,7.96412705]
[1763665436362,9.96412704,132.09,132.04,7.96412705]
[1763665436571,9.96412704,132.09,131.93,18.94875815]
[1763665436572,10.67412704,132.08,132.03,7.96412705]
[1763665436781,7.96412705,132.07,132.02,7.96412705]
[1763665436963,8.67412705,132.07,132.02,7.96412705]
[1763665437166,1.99999999,132.08,132.04,7.96412705]
[1763665437375,10.67412704,132.11,132.06,7.96412705]
[1763665437550,8.67412705,132.1,132.04,7.96412705]
[1763665437756,8.67412705,132.1,132.05,7.96412705]
[1763665438153,0.71,132.1,132.06,7.96412705]
[1763665438463,0.71,132.1,132.05,7.96412705]
[1763665438675,10.67412704,132.1,132.05,7.96412705]
[1763665438869,8.67412705,132.1,132.05,7.96412705]
[1763665439074,8.67412705,132.09,132.0,7.96412705]
[1763665439287,0.71,132.09,132.05,7.96412705]
[1763665439778,7.96412705,132.1,132.05,7.96412705]
[1763665439990,8.67412705,132.1,132.05,7.96412705]
[1763665440153,0.71,132.09,132.05,7.96412705]
[1763665440349,8.67412705,132.09,132.0,7.96412705]
[1763665440553,7.96412705,132.08,132.0,163.8]
[1763665440756,0.71,132.08,132.04,7.96412705]
[1763665440974,0.71,132.08,132.04,61.2]
[1763665441478,0.71,132.08,132.0,7.96412705]
[1763665441681,8.67412705,132.08,131.99,1.86]
[1763665441887,0.71,132.08,132.02,7.96412705]
[1763665442089,8.67412705,132.08,132.02,7.96412705]
[1763665442291,2.70999999,132.07,132.0,7.96412705]
[1763665442450,7.96412705,132.06,132.01,7.96412705]
[1763665442654,8.67412705,132.06,132.01,7.96412705]
[1763665442893,0.71,132.05,131.99,1.86]
[1763665443093,7.96412705,132.03,131.99,1.86]
[1763665443258,7.96412705,132.04,131.99,9.82412705]
[1763665443452,8.67412705,132.04,131.99,9.82412705]
[1763665443657,0.71,132.04,132.0,7.96412705]
[1763665443961,9.96412704,132.05,131.94,23.21202173]
[1763665443962,7.96412705,132.05,131.94,23.21202173]
[1763665444174,8.67412705,132.05,131.99,7.96412705]
[1763665444376,50.0,132.08,131.95,1.86]
[1763665444377,7.96412705,132.07,132.02,7.96412705]
[1763665444554,7.96412705,132.07,132.03,7.96412705]
[1763665444555,1.99999999,132.07,132.03,7.96412705]
[1763665444759,1.99999999,132.07,131.95,63.06]
[1763665444960,1.99999999,132.07,132.03,7.96412705]
[1763665445382,2.70999999,132.07,132.03,7.96412705]
[1763665445572,0.71,132.07,132.03,7.96412705]
[1763665445967,8.67412705,132.07,131.95,63.06]
[1763665446169,8.67412705,132.06,132.01,7.96412705]
[1763665446374,2.70999999,132.06,131.95,1.86]
[1763665446560,7.96412705,132.02,131.97,7.96412705]
[1763665446960,1.99999999,132.03,131.97,7.96412705]
[1763665447201,0.71,132.02,131.98,7.96412705]
[1763665447794,50.0,132.06,132.01,7.96412705]
[1763665447795,1.99999999,132.06,132.01,7.96412705]
[1763665447959,0.71,132.07,132.01,163.8]
[1763665448161,10.67412704,132.06,132.01,163.8]
[1763665448376,2.70999999,132.06,132.02,7.96412705]
[1763665448571,0.71,132.05,132.01,171.76412705]
[1763665448867,1.99999999,132.07,132.03,7.96412705]
[1763665449066,8.67412705,132.06,131.95,63.06]
[1763665449284,0.71,132.06,132.02,7.96412705]
[1763665449666,7.96412705,132.05,131.95,165.66]
[1763665449998,1.99999999,132.05,131.95,165.66]
[1763665450178,0.71,132.05,132.01,7.96412705]
[1763665450501,8.67412705,132.05,132.01,171.76412705]
[1763665450800,10.67412704,132.04,132.01,61.2]
[1763665451097,10.67412704,132.04,132.01,163.8]
[1763665451282,8.67412705,132.03,132.01,163.8]
[1763665451489,9.96412704,132.02,132.01,60.48]
[1763665451797,10.67412704,132.02,131.98,60.48]
[1763665451987,7.96412705,131.99,131.98,60.48]
[1763665452382,1.99999999,131.98,131.95,60.48]
[1763665452776,9.96412704,132.0,131.95,68.44412705]
[1763665453088,0.71,132.0,131.96,7.96412705]
[1763665453291,7.96412705,132.01,131.96,8.67412705]
[1763665453469,8.67412705,132.01,131.96,8.67412705]
[1763665453672,2.70999999,132.03,131.99,7.96412705]
[1763665453891,7.96412705,132.05,132.0,7.96412705]
[1763665454078,1.99999999,132.04,132.01,7.96412705]
[1763665454283,0.71,132.05,132.01,7.96412705]
[1763665454576,7.96412705,132.06,132.02,7.96412705]
[1763665454771,0.71,132.05,132.02,7.96412705]
[1763665454972,0.71,132.05,132.01,7.96412705]
[1763665455167,8.67412705,132.05,131.99,0.71]
[1763665455390,10.67412704,132.05,132.0,7.96412705]
[1763665455698,50.0,132.08,132.0,0.71]
[1763665455699,1.99999999,132.07,132.0,0.71]
[1763665455901,10.67412704,132.05,132.01,7.96412705]
[1763665456106,10.67412704,132.05,132.0,7.96412705]
[1763665456397,8.67412705,132.07,132.02,7.96412705]
[1763665456802,0.71,132.06,132.02,7.96412705]
[1763665457117,2.70999999,132.06,132.02,7.96412705]
[1763665457399,7.96412705,132.04,131.99,7.96412705]
[1763665457900,0.71,132.03,131.99,7.96412705]
[1763665458104,0.71,132.03,131.95,1.86]
[1763665458105,8.67412705,132.03,131.95,2.57]
[1763665458305,0.71,132.05,132.0,7.96412705]
[1763665458485,10.67412704,132.04,131.99,7.96412705]
[1763665458811,2.70999999,132.04,131.99,7.96412705]
[1763665459107,2.70999999,132.04,132.0,7.96412705]
[1763665459305,7.96412705,132.04,131.95,1.86]
[1763665459480,0.71,132.03,131.99,7.96412705]
[1763665459681,0.71,132.03,131.99,171.04412705]
[1763665460174,0.71,132.03,132.0,7.96412705]
[1763665460504,8.61412705,132.05,132.0,68.44412705]
[1763665460709,0.65,132.04,132.01,7.96412705]
[1763665461204,1.99999999,132.05,132.01,7.96412705]
[1763665461384,0.65,132.04,131.99,61.14]
[1763665461591,0.65,132.04,132.01,7.96412705]
[1763665461788,1.99999999,132.05,132.01,7.96412705]
[1763665462101,2.64999999,132.05,132.01,7.96412705]
[1763665462612,2.64999999,132.05,131.99,60.48]
[1763665462613,0.65,132.05,132.02,7.96412705]
[1763665462808,0.65,132.05,132.02,12.49668929]
[1763665463377,15.14668928,132.05,131.99,60.48]
[1763665463609,1.99999999,132.04,131.98,0.66]
[1763665463794,0.65,132.05,132.01,12.49668929]
[1763665463995,0.65,132.05,132.02,12.49668929]
[1763665464408,0.65,132.05,132.01,12.49668929]
[1763665464920,1.99999999,132.06,132.01,0.66]
[1763665465216,0.65,132.06,132.03,12.49668929]
[1763665465414,0.65,132.06,132.01,0.66]
[1763665465786,0.65,132.06,132.03,12.49668929]
[1763665466087,2.64999999,132.06,132.02,12.49668929]
[1763665466585,1.99999999,132.07,132.03,12.49668929]
[1763665466802,2.64999999,132.07,132.03,12.49668929]
[1763665467001,0.65,132.07,132.03,12.49668929]
[1763665467208,13.14668929,132.06,132.0,1.86]
[1763665467391,14.49668928,132.05,132.0,1.86]
[1763665467712,15.14668928,132.05,132.0,1.86]
[1763665467896,0.65,132.04,132.0,14.35668929]
[1763665468294,1.99999999,132.05,132.01,12.49668929]
[1763665468494,0.65,132.05,132.01,12.49668929]
[1763665468793,15.14668928,132.07,132.02,12.49668929]
[1763665469005,0.65,132.06,132.0,1.86]
[1763665469213,0.65,132.06,132.0,2.52]
[1763665469395,13.14668929,132.09,132.04,12.49668929]
[1763665469589,0.65,132.08,132.04,12.49668929]
[1763665469788,1.99999999,132.06,132.0,1.86]
[1763665470011,1.99999999,132.05,132.01,12.49668929]
[1763665470407,0.68,132.04,132.0,14.35668929]
[1763665470713,2.67999999,132.04,132.0,1.86]
[1763665471019,0.68,132.03,132.0,1.86]
[1763665471321,1.99999999,132.04,132.0,15.00668929]
[1763665471611,0.68,132.04,132.0,15.00668929]
[1763665471822,2.67999999,132.04,132.0,15.00668929]
[1763665472024,2.67999999,132.06,132.01,13.14668929]
[1763665472235,0.68,132.05,132.0,1.86]
[1763665472385,0.68,132.06,132.02,12.49668929]
[1763665472590,2.67999999,132.06,132.02,12.49668929]
[1763665472786,1.99999999,132.05,132.0,2.51]
[1763665472993,2.67999999,132.06,132.0,2.51]
[1763665473208,50.0,132.09,132.03,12.49668929]
[1763665473209,1.99999999,132.07,132.03,12.49668929]
[1763665473706,2.67999999,132.07,132.03,73.69668929]
[1763665473896,2.67999999,132.07,132.03,61.2]
[1763665474224,1.99999999,132.07,132.04,13.14668929]
[1763665474399,15.17668928,132.09,132.04,12.49668929]
[1763665474600,1.99999999,132.1,132.05,12.49668929]
[1763665474914,2.67999999,132.09,132.06,12.49668929]
[1763665475216,2.67999999,132.09,132.05,12.49668929]
[1763665475624,2.67999999,132.09,132.04,12.49668929]
[1763665476129,2.67999999,132.08,132.03,12.49668929]
[1763665476431,14.49668928,132.06,132.0,14.35668929]
[1763665476602,1.99999999,132.05,132.0,15.00668929]
[1763665476801,5.20730263,132.04,132.0,15.00668929]
[1763665477096,1.99999999,132.06,132.03,12.49668929]
[1763665477416,1.99999999,132.07,132.03,12.49668929]
[1763665477724,1.99999999,132.07,132.02,0.65]
[1763665477895,1.99999999,132.07,132.03,12.49668929]
[1763665478293,2.67999999,132.07,132.0,1.86]
[1763665478494,7.89529946,132.06,132.01,12.49668929]
[1763665478695,2.67999999,132.06,132.02,12.49668929]
[1763665478916,2.67999999,132.06,132.01,0.65]
[1763665479131,1.99999999,132.06,132.02,13.14668929]
[1763665479502,2.67999999,132.06,132.02,13.14668929]
[1763665479700,2.67999999,132.06,132.03,12.49668929]
[1763665479903,2.67999999,132.06,132.02,13.14668929]
[1763665480840,1.27999999,132.08,132.05,12.49668929]
[1763665481040,0.68,132.13,132.07,12.49668929]
[1763665481192,0.68,132.13,132.06,1.86]
[1763665481193,13.77668928,132.12,132.06,1.86]
[1763665481398,5.21031393,132.11,132.06,1.86]
[1763665481633,5.21031393,132.11,131.96,0.72]
[1763665481634,1.27999999,132.06,131.96,0.72]
[1763665481810,1.27999999,132.06,132.01,12.49668929]
[1763665482001,1.27999999,132.06,131.97,1.86]
[1763665482002,1.95999999,132.06,132.02,12.49668929]
[1763665482624,0.68,132.05,131.97,1.86]
[1763665482823,0.68,132.05,132.01,12.49668929]
[1763665483135,0.68,132.05,132.0,12.49668929]
[1763665483317,12.49668929,132.03,131.97,1.86]
[1763665483498,1.95999999,132.05,132.01,12.49668929]
[1763665483699,0.68,132.08,132.04,12.49668929]
[1763665483895,1.27999999,132.07,132.05,12.49668929]
[1763665484098,0.68,132.08,132.04,12.49668929]
[1763665484715,1.95999999,132.08,132.01,1.86]
[1763665484926,1.27999999,132.07,132.01,1.86]
[1763665485107,6.49127858,132.06,132.02,12.49668929]
[1763665485295,14.45668928,132.06,132.01,12.49668929]
[1763665485495,1.27999999,132.04,131.97,22.39935582]
[1763665485711,1.27999999,132.04,132.0,12.49668929]
[1763665485926,0.68,132.05,132.01,12.49668929]
[1763665486110,1.27999999,132.04,132.01,12.49668929]
[1763665486506,1.27999999,132.04,132.0,14.35668929]
[1763665486711,0.68,132.03,132.0,1.86]
[1763665486919,1.95999999,132.03,132.0,1.86]
[1763665487101,0.68,132.03,132.0,1.86]
[1763665488208,0.68,132.03,132.0,14.35668929]
[1763665488607,0.68,132.05,132.01,12.49668929]
[1763665488940,0.68,132.04,132.01,12.49668929]
[1763665489128,1.27999999,132.03,132.0,14.35668929]
[1763665489310,0.68,132.04,132.0,14.35668929]
[1763665489510,1.27999999,132.03,132.0,14.35668929]
[1763665489710,0.68,132.04,132.0,14.35668929]
[1763665489942,0.68,132.04,132.01,12.49668929]
[1763665490317,0.68,132.04,132.0,14.35668929]
[1763665490518,1.27999999,132.02,131.98,12.49668929]
[1763665490929,1.95999999,132.04,131.99,12.49668929]
[1763665491124,0.68,132.04,132.0,12.49668929]
[1763665491519,0.68,132.04,132.0,176.29668929]
[1763665491718,0.69,132.04,132.0,176.29668929]
[1763665492034,1.96999999,132.04,132.0,176.29668929]
[1763665492433,0.69,132.04,132.0,176.29668929]
[1763665493016,14.46668928,132.06,132.0,176.29668929]
[1763665493540,14.46668928,132.06,132.01,12.49668929]
[1763665493848,14.46668928,132.06,132.01,14.35668929]
[1763665494139,0.69,132.05,132.01,14.35668929]
[1763665494531,0.69,132.05,132.01,1.86]
[1763665494730,0.69,132.05,132.01,14.35668929]
[1763665495331,0.69,132.05,132.02,12.49668929]
[1763665495639,1.27999999,132.06,132.02,12.49668929]
[1763665495845,0.69,132.06,132.02,12.49668929]
[1763665496032,0.69,132.06,132.02,176.29668929]
[1763665496345,1.27999999,132.07,132.02,176.29668929]
[1763665496846,1.27999999,132.07,132.02,163.8]
[1763665497040,0.69,132.06,132.03,12.49668929]
[1763665497831,1.27999999,132.07,132.03,12.49668929]
[1763665498025,1.96999999,132.07,132.03,12.49668929]
[1763665498715,0.69,132.07,132.04,12.49668929]
[1763665498915,1.27999999,132.1,132.06,12.49668929]
[1763665499146,1.96999999,132.11,132.05,1.84]
[1763665499315,1.96999999,132.11,132.07,12.49668929]
[1763665499641,0.69,132.11,132.08,12.49668929]
[1763665499952,0.69,132.11,132.06,1.84]
[1763665500120,1.27999999,132.09,132.08,12.49668929]
[1763665500323,0.69,132.11,132.09,61.2]
[1763665500534,14.46668928,132.11,132.09,61.2]
[1763665500826,1.27999999,132.09,132.08,60.48]
[1763665501158,1.27999999,132.1,132.08,60.48]
[1763665501363,1.27999999,132.1,132.08,175.57668929]
[1763665501660,1.96999999,132.15,132.09,15.00668929]
[1763665501864,0.69,132.17,132.14,12.49668929]
[1763665502021,0.69,132.19,132.15,12.49668929]
[1763665502216,1.27999999,132.17,132.05,0.7572889]
[1763665502415,1.96999999,132.18,132.13,12.49668929]
[1763665502720,0.69,132.2,132.12,1.84]
[1763665503036,12.49668929,132.18,132.12,1.84]
[1763665503344,1.27999999,132.15,132.09,2.53]
[1763665503760,1.96999999,132.15,132.09,2.53]
[1763665503968,1.27999999,132.13,132.09,1.86]
[1763665504254,0.69,132.12,132.09,1.86]
[1763665504620,1.27999999,132.11,132.09,1.86]
[1763665505447,0.69,132.11,132.03,22.40450854]
[1763665505655,0.69,132.11,132.07,12.49668929]
[1763665505951,0.69,132.11,132.05,0.67]
[1763665505952,0.69,132.11,132.06,12.49668929]
[1763665506154,1.27999999,132.09,132.04,14.35668929]
[1763665506364,13.77668928,132.08,132.02,12.49668929]
[1763665506523,13.77668928,132.07,132.01,19.35115401]
[1763665506723,13.77668928,132.06,132.0,14.35668929]
[1763665506947,1.27999999,132.06,132.02,12.49668929]
[1763665507136,1.27999999,132.06,132.04,12.49668929]
[1763665507445,1.96999999,132.06,132.04,61.2]
[1763665508032,1.96999999,132.05,132.0,1.86]
[1763665508421,1.96999999,132.05,132.01,12.49668929]
[1763665508631,1.27999999,132.05,132.0,14.35668929]
[1763665508835,1.96999999,132.04,132.0,1.86]
[1763665509041,0.69,132.03,132.0,1.86]
[1763665509240,1.96999999,132.04,132.0,1.86]
[1763665509627,1.27999999,132.02,132.0,1.86]
[1763665510047,1.96999999,132.02,132.0,1.86]
[1763665510257,12.49668929,132.03,131.97,12.49668929]
[1763665510258,0.69,132.01,131.97,12.49668929]
[1763665510430,0.69,132.01,131.96,2.53]
[1763665510635,0.69,132.01,131.97,12.49668929]
[1763665510850,1.96999999,132.03,131.98,12.49668929]
[1763665511035,1.96999999,132.03,131.97,0.67]
[1763665511036,1.96999999,132.03,131.99,12.49668929]
[1763665511230,0.69,132.03,132.0,12.49668929]
[1763665511536,1.96999999,132.03,131.97,0.67]
[1763665511754,1.96999999,132.03,131.99,12.49668929]
[1763665511956,1.27999999,132.03,131.99,12.49668929]
[1763665512264,1.27999999,132.04,132.0,12.49668929]
[1763665512630,1.27999999,132.03,131.96,1.86]
[1763665512870,1.27999999,132.01,131.95,22.65280545]
[1763665513034,1.27999999,132.01,131.97,12.49668929]
[1763665513557,0.69,132.02,131.98,12.49668929]
[1763665513764,1.27999999,132.01,131.98,12.49668929]
[1763665514230,1.27999999,132.01,131.97,0.67]
[1763665514428,1.96999999,132.04,131.97,0.67]
[1763665514739,1.27999999,132.02,131.99,12.49668929]
[1763665514954,1.96999999,132.03,132.0,12.49668929]
[1763665515456,1.27999999,132.05,132.02,12.49668929]
[1763665515657,1.96999999,132.05,132.01,12.49668929]
[1763665515866,1.27999999,132.06,132.03,12.49668929]
[1763665516163,1.27999999,132.07,132.05,12.49668929]
[1763665516369,0.69,132.1,132.06,12.49668929]
[1763665516370,1.27999999,132.09,132.06,12.49668929]
[1763665516566,1.27999999,132.08,132.06,12.49668929]
[1763665516935,1.27999999,132.09,132.06,12.49668929]
[1763665517163,1.27999999,132.08,132.03,1.86]
[1763665517343,1.27999999,132.08,132.05,12.49668929]
[1763665517547,1.27999999,132.08,132.06,12.49668929]
[1763665517850,1.27999999,132.08,132.04,0.67]
[1763665518047,1.27999999,132.08,132.06,12.49668929]
[1763665518563,1.27999999,132.08,132.04,0.67]
[1763665518772,1.27999999,132.08,132.05,12.49668929]
[1763665518973,1.96999999,132.1,132.06,12.49668929]
[1763665519138,1.27999999,132.09,132.07,12.49668929]
[1763665519473,1.27999999,132.1,132.08,12.49668929]
[1763665519635,1.27999999,132.12,132.07,1.86]
[1763665519835,0.69,132.13,132.1,12.49668929]